fUSD/lending_fUSD_20240116
["ID","MTS","AMOUNT","RATE_DAILY","PERIOD"]
[311755669,1705378257181,-500.0,0.00022705,2]
[311755670,1705378257192,-500.0,0.00022705,2]
[311755671,1705378257204,-500.0,0.00022705,2]
[311755672,1705378257216,-584.19,0.00022705,2]
[311755673,1705378257226,-500.0,0.00022705,2]
[311755674,1705378257238,-500.0,0.00022705,2]
[311755675,1705378257249,-500.0,0.00022705,2]
[311755676,1705378257261,-500.0,0.00022705,2]
[311755677,1705378257272,-570.23,0.00022705,2]
[311755678,1705378257283,-500.0,0.00022705,2]
[311755679,1705378257294,-500.0,0.00022705,2]
[311755680,1705378257306,-529.54,0.00022705,2]
[311755681,1705378257316,-500.0,0.00022705,2]
[311755682,1705378257327,-500.0,0.00022705,2]
[311755683,1705378257339,-500.0,0.00022705,2]
[311755684,1705378257350,-500.0,0.00022705,2]
[311755685,1705378257361,-500.0,0.00022705,2]
[311755686,1705378257373,-500.0,0.00022705,2]
[311755687,1705378257383,-500.0,0.00022705,2]
[311755688,1705378257394,-500.0,0.00022705,2]
[311755689,1705378257406,-500.0,0.00022705,2]
[311755690,1705378257417,-500.0,0.00022705,2]
[311755691,1705378257428,-500.0,0.00022705,2]
[311755692,1705378257440,-500.0,0.00022705,2]
[311755693,1705378257451,-261.32334078,0.00022705,2]
[311755694,1705378257462,-500.0,0.00022705,2]
[311755695,1705378257473,-500.0,0.00022705,2]
[311755696,1705378257485,-500.0,0.00022705,2]
[311755697,1705378257496,-500.0,0.00022705,2]
[311755698,1705378257508,-548.5,0.00022705,2]
[311755699,1705378257519,-948.98,0.00022705,2]
[311755700,1705378257531,-500.0,0.00022705,2]
[311755701,1705378257542,-500.0,0.00022705,2]
[311755702,1705378257554,-535.61,0.00022705,2]
[311755703,1705378257565,-500.0,0.00022705,2]
[311755704,1705378257576,-500.0,0.00022705,2]
[311755705,1705378257588,-500.0,0.00022705,2]
[311755706,1705378257599,-500.0,0.00022705,2]
[311755707,1705378257610,-500.0,0.00022705,2]
[311755708,1705378257621,-500.0,0.00022705,2]
[311755709,1705378257633,-611.29,0.00022705,2]
[311755710,1705378257645,-518.66,0.00022705,2]
[311755711,1705378257656,-408.18354686,0.00022705,2]
[311755712,1705378257668,-500.0,0.00022705,2]
[311755713,1705378257680,-544.82,0.00022705,2]
[311755714,1705378257691,-500.0,0.00022705,2]
[311755715,1705378257702,-500.0,0.00022705,2]
[311755716,1705378257713,-500.0,0.00022705,2]
[311755717,1705378257724,-504.2,0.00022705,2]
[311755718,1705378257736,-1101.92,0.00022705,2]
[311755719,1705378257748,-500.0,0.00022705,2]
[311755720,1705378257760,-500.0,0.00022705,2]
[311755721,1705378257771,-500.0,0.00022705,2]
[311755722,1705378257783,-500.0,0.00022705,2]
[311755723,1705378257795,-500.0,0.00022705,2]
[311755724,1705378257806,-510.11,0.00022705,2]
[311755725,1705378257817,-500.0,0.00022705,2]
[311755726,1705378257828,-500.0,0.00022705,2]
[311755727,1705378257839,-500.0,0.00022705,2]
[311755728,1705378257852,-500.0,0.00022705,2]
[311755729,1705378257864,-500.0,0.00022705,2]
[311755730,1705378257875,-500.0,0.00022705,2]
[311755731,1705378257887,-500.0,0.00022705,2]
[311755732,1705378257898,-500.0,0.00022705,2]
[311755733,1705378257910,-523.58,0.00022705,2]
[311755734,1705378257921,-500.0,0.00022705,2]
[311755735,1705378257932,-153.54648296,0.00022705,2]
[311755736,1705378257943,-500.0,0.00022705,2]
[311755737,1705378257956,-500.0,0.00022705,2]
[311755738,1705378257967,-500.0,0.00022705,2]
[311755739,1705378257978,-500.0,0.00022705,2]
[311755740,1705378257990,-522.67,0.00022705,2]
[311755741,1705378258001,-500.0,0.00022705,2]
[311755742,1705378258014,-500.0,0.00022705,2]
[311755743,1705378258024,-516.66,0.00022705,2]
[311755744,1705378258035,-500.0,0.00022705,2]
[311755745,1705378258048,-500.0,0.00022705,2]
[311755746,1705378258059,-500.0,0.00022705,2]
[311755747,1705378258070,-541.55,0.00022705,2]
[311755748,1705378258081,-601.06,0.00022705,2]
[311755749,1705378258092,-500.0,0.00022705,2]
[311755750,1705378258104,-500.0,0.00022705,2]
[311755751,1705378258115,-500.0,0.00022705,2]
[311755752,1705378258127,-500.0,0.00022705,2]
[311755753,1705378258137,-500.0,0.00022705,2]
[311755754,1705378258149,-500.0,0.00022705,2]
[311755755,1705378258160,-545.75,0.00022705,2]
[311755756,1705378258172,-500.0,0.00022705,2]
[311755757,1705378258183,-684.49,0.00022705,2]
[311755758,1705378258194,-500.0,0.00022705,2]
[311755759,1705378258205,-500.0,0.00022705,2]
[311755760,1705378258216,-500.0,0.00022705,2]
[311755761,1705378258228,-522.38,0.00022705,2]
[311755762,1705378258239,-500.0,0.00022705,2]
[311755763,1705378258251,-500.0,0.00022705,2]
[311755764,1705378258263,-500.0,0.00022705,2]
[311755765,1705378258274,-500.0,0.00022705,2]
[311755766,1705378258285,-500.0,0.00022705,2]
[311755767,1705378258296,-500.0,0.00022705,2]
[311755768,1705378258307,-500.0,0.00022705,2]
[311755769,1705378258319,-528.65,0.00022705,2]
[311755770,1705378258331,-500.0,0.00022705,2]
[311755771,1705378258342,-500.0,0.00022705,2]
[311755772,1705378258354,-500.0,0.00022705,2]
[311755773,1705378258365,-575.15,0.00022705,2]
[311755774,1705378258377,-500.0,0.00022705,2]
[311755775,1705378258389,-620.84,0.00022705,2]
[311755776,1705378258401,-588.18,0.00022705,2]
[311755777,1705378258412,-500.0,0.00022705,2]
[311755778,1705378258423,-500.0,0.00022705,2]
[311755779,1705378258434,-500.0,0.00022705,2]
[311755780,1705378258445,-3691.54,0.00022705,2]
[311755781,1705378258456,-1412.0,0.00022705,2]
[311755782,1705378258467,-500.0,0.00022705,2]
[311755783,1705378258477,-500.0,0.00022705,2]
[311755784,1705378258489,-690.1,0.00022705,2]
[311755785,1705378258500,-2090.42,0.00022705,2]
[311755786,1705378258512,-1407.81,0.00022705,2]
[311755787,1705378258524,-500.0,0.00022705,5]
[311755788,1705378258535,-3426.16,0.00022705,2]
[311755789,1705378258546,-500.0,0.00022705,2]
[311755790,1705378258557,-608.57,0.00022705,2]
[311755791,1705378258568,-651.13,0.00022705,2]
[311755792,1705378258580,-504.11,0.00022705,2]
[311755793,1705378258591,-500.0,0.00022705,2]
[311755794,1705378258603,-500.0,0.00022705,2]
[311755795,1705378258614,-505.43,0.00022705,2]
[311755796,1705378258626,-500.0,0.00022705,2]
[311755797,1705378258637,-500.0,0.00022705,2]
[311755798,1705378258649,-500.0,0.00022705,2]
[311755799,1705378258660,-600.08,0.00022705,2]
[311755800,1705378258671,-2143.19,0.00022705,2]
[311755801,1705378258682,-1143.7,0.00022705,2]
[311755802,1705378258694,-500.0,0.00022705,2]
[311755803,1705378258705,-500.0,0.00022705,2]
[311755804,1705378258717,-6287.89,0.00022705,2]
[311755805,1705378258729,-1016.22,0.00022705,2]
[311755806,1705378258740,-500.0,0.00022705,2]
[311755807,1705378258751,-500.0,0.00022705,2]
[311755808,1705378258762,-500.0,0.00022705,2]
[311755809,1705378258773,-500.0,0.00022705,2]
[311755810,1705378258785,-501.15,0.00022705,2]
[311755811,1705378258796,-500.0,0.00022705,2]
[311755812,1705378258807,-500.0,0.00022705,2]
[311755813,1705378258818,-3940.51,0.00022705,2]
[311755814,1705378258829,-500.0,0.00022705,2]
[311755815,1705378258840,-562.73,0.00022705,2]
[311755816,1705378258851,-5999.56,0.00022705,2]
[311755817,1705378258863,-3385.6,0.00022705,2]
[311755818,1705378258878,-985.72,0.00022705,2]
[311755819,1705378258890,-3553.69,0.00022705,2]
[311755820,1705378258901,-500.0,0.00022705,2]
[311755821,1705378258912,-500.0,0.00022705,2]
[311755822,1705378258923,-536.7,0.00022705,2]
[311755823,1705378258935,-182.26,0.00022705,2]
[311755824,1705378258946,-633.73,0.00022705,2]
[311755825,1705378258959,-500.0,0.00022705,2]
[311755826,1705378258971,-2218.44,0.00022705,2]
[311755827,1705378258982,-2860.71,0.00022705,2]
[311755828,1705378258993,-2411.04,0.00022705,2]
[311755829,1705378259004,-1113.19,0.00022705,2]
[311755830,1705378259015,-17126.86,0.00022705,2]
[311755831,1705378259026,-500.0,0.00022705,2]
[311755832,1705378259037,-1532.91,0.00022705,2]
[311755833,1705378259050,-500.0,0.00022705,2]
[311755834,1705378259061,-549.03,0.00022705,2]
[311755835,1705378259072,-4747.94,0.00022705,2]
[311755836,1705378259083,-500.0,0.00022705,2]
[311755837,1705378259094,-945.94,0.00022705,2]
[311755838,1705378259105,-1438.97,0.00022705,2]
[311755840,1705378259116,-8028.51,0.00022705,2]
[311755841,1705378259127,-500.0,0.00022705,2]
[311755842,1705378259138,-1325.69,0.00022705,2]
[311755843,1705378259148,-500.0,0.00022705,2]
[311755844,1705378259159,-1522.11,0.00022705,2]
[311755845,1705378259170,-6292.54,0.00022705,2]
[311755846,1705378259181,-533.99,0.00022705,2]
[311755847,1705378259192,-500.0,0.00022705,2]
[311755848,1705378259203,-537.74,0.00022705,2]
[311755849,1705378259215,-589.68,0.00022705,2]
[311755850,1705378259226,-2666.98,0.00022705,2]
[311755851,1705378259238,-500.0,0.00022705,2]
[311755852,1705378259249,-500.0,0.00022705,2]
[311755853,1705378259263,-500.0,0.00022705,2]
[311755854,1705378259274,-500.0,0.00022705,2]
[311755855,1705378259284,-610.57,0.00022705,2]
[311755856,1705378259295,-500.0,0.00022705,2]
[311755857,1705378259306,-500.0,0.00022705,2]
[311755858,1705378259317,-500.0,0.00022705,2]
[311755859,1705378259328,-5758.52,0.00022705,2]
[311755860,1705378259339,-500.0,0.00022705,2]
[311755861,1705378259351,-494.51390555,0.00022705,2]
[311755862,1705378259362,-906.71,0.00022705,2]
[311755863,1705378259374,-500.0,0.00022705,2]
[311755864,1705378259385,-559.89,0.00022705,2]
[311755865,1705378259396,-500.0,0.00022705,2]
[311755866,1705378259408,-2170.84,0.00022705,2]
[311755867,1705378259420,-500.0,0.00022705,2]
[311755868,1705378259431,-986.63,0.00022705,2]
[311755869,1705378259442,-544.47,0.00022705,2]
[311755870,1705378259453,-1258.37,0.00022705,2]
[311755871,1705378259465,-500.0,0.00022705,2]
[311755872,1705378259477,-500.0,0.00022705,2]
[311755873,1705378259490,-728.97,0.00022705,2]
[311755874,1705378259503,-500.0,0.00022705,2]
[311755875,1705378259515,-500.0,0.00022705,2]
[311755876,1705378259528,-518.59,0.00022705,2]
[311755877,1705378260102,-500.0,0.00022705,2]
[311755878,1705378260122,-5075.46,0.00022705,2]
[311755879,1705378260167,-2678.5,0.00022705,2]
[311755880,1705378260194,-2990.34,0.00022705,2]
[311755881,1705378260207,-1239.55,0.00022705,2]
[311755882,1705378260217,-500.0,0.00022705,2]
[311755883,1705378260227,-500.0,0.00022705,2]
[311755884,1705378260236,-500.0,0.00022705,2]
[311755885,1705378260246,-292.99,0.00022705,2]
[311755886,1705378260259,-500.0,0.00022705,2]
[311755887,1705378260268,-500.0,0.00022705,2]
[311755888,1705378260278,-586.36,0.00022705,2]
[311755889,1705378260287,-798.3,0.00022705,2]
[311755890,1705378260296,-2776.2,0.00022705,2]
[311755891,1705378260305,-500.0,0.00022705,2]
[311755892,1705378260314,-500.0,0.00022705,2]
[311755893,1705378260323,-500.0,0.00022705,2]
[311755894,1705378260333,-591.03,0.00022705,2]
[311755895,1705378260343,-944.22,0.00022705,2]
[311755896,1705378260352,-500.0,0.00022705,2]
[311755897,1705378260362,-500.0,0.00022705,2]
[311755898,1705378260372,-500.0,0.00022705,2]
[311755899,1705378260382,-553.87,0.00022705,2]
[311755900,1705378260392,-599.6,0.00022705,2]
[311755901,1705378260402,-1303.86,0.00022705,2]
[311755902,1705378260411,-721.89,0.00022705,2]
[311755903,1705378260421,-500.0,0.00022705,2]
[311755904,1705378260430,-500.0,0.00022705,2]
[311755905,1705378260440,-2372.65,0.00022705,2]
[311755906,1705378260450,-1097.95,0.00022705,2]
[311755907,1705378260459,-500.0,0.00022705,2]
[311755908,1705378260469,-2336.12,0.00022705,2]
[311755909,1705378260482,-500.0,0.00022705,2]
[311755910,1705378260492,-500.0,0.00022705,2]
[311755911,1705378260501,-500.0,0.00022705,2]
[311755912,1705378260513,-500.0,0.00022705,2]
[311755913,1705378260524,-515.47,0.00022705,2]
[311755914,1705378260534,-563.84,0.00022705,2]
[311755915,1705378260545,-1099.7,0.00022705,2]
[311755916,1705378260554,-2142.56,0.00022705,2]
[311755917,1705378260564,-1380.19,0.00022705,2]
[311755918,1705378260575,-1048.9,0.00022705,2]
[311755919,1705378260585,-665.01,0.00022705,2]
[311755920,1705378260594,-500.0,0.00022705,2]
[311755921,1705378260604,-1754.21,0.00022705,2]
[311755922,1705378260614,-500.0,0.00022705,2]
[311755923,1705378260624,-521.97,0.00022705,2]
[311755924,1705378260633,-500.0,0.00022705,2]
[311755925,1705378260643,-1043.84,0.00022705,2]
[311755926,1705378260652,-500.0,0.00022705,2]
[311755927,1705378260663,-500.0,0.00022705,2]
[311755928,1705378260672,-500.0,0.00022705,2]
[311755929,1705378260682,-1343.04,0.00022705,2]
[311755930,1705378260692,-1260.2,0.00022705,2]
[311755931,1705378260702,-500.0,0.00022705,2]
[311755932,1705378260712,-500.0,0.00022705,2]
[311755933,1705378260722,-500.0,0.00022705,2]
[311755934,1705378260732,-3241.0,0.00022705,2]
[311755935,1705378260741,-1208.62,0.00022705,2]
[311755936,1705378260751,-500.0,0.00022705,2]
[311755937,1705378260762,-907.81,0.00022705,2]
[311755938,1705378260772,-533.74,0.00022705,2]
[311755939,1705378260782,-500.0,0.00022705,2]
[311755940,1705378260792,-500.0,0.00022705,2]
[311755941,1705378260802,-500.0,0.00022705,2]
[311755942,1705378260812,-4842.59,0.00022705,2]
[311755943,1705378260822,-500.0,0.00022705,2]
[311755944,1705378260831,-1022.4,0.00022705,2]
[311755945,1705378260841,-3206.12,0.00022705,2]
[311755946,1705378260850,-1741.46,0.00022705,2]
[311755947,1705378260860,-594.42,0.00022705,2]
[311755948,1705378260873,-361.63,0.00022705,2]
[311755949,1705378260883,-500.0,0.00022705,2]
[311755950,1705378260892,-500.0,0.00022705,2]
[311755951,1705378260903,-3385.67,0.00022705,2]
[311755952,1705378260913,-500.0,0.00022705,2]
[311755953,1705378260923,-500.0,0.00022705,2]
[311755954,1705378260933,-500.0,0.00022705,2]
[311755955,1705378260943,-2382.8,0.00022705,2]
[311755956,1705378260952,-500.0,0.00022705,2]
[311755957,1705378260963,-153.23,0.00022705,2]
[311755958,1705378260974,-500.0,0.00022706,2]
[311755959,1705378260984,-652.24,0.00022706,2]
[311755960,1705378260993,-500.0,0.00022706,2]
[311755961,1705378261003,-500.0,0.00022706,2]
[311755962,1705378261013,-500.0,0.00022706,2]
[311755963,1705378261023,-500.0,0.00022706,2]
[311755964,1705378261032,-500.0,0.00022706,2]
[311755965,1705378261042,-500.0,0.00022706,2]
[311755966,1705378261052,-500.0,0.00022706,2]
[311755967,1705378261062,-500.0,0.00022706,2]
[311755968,1705378261071,-500.0,0.00022706,2]
[311755969,1705378261081,-500.0,0.00022706,2]
[311755970,1705378261090,-668.01,0.00022706,2]
[311755971,1705378261100,-500.0,0.00022706,2]
[311755972,1705378261110,-500.0,0.00022706,2]
[311755973,1705378261120,-804.89,0.00022706,2]
[311755974,1705378261129,-500.0,0.00022706,2]
[311755975,1705378261139,-500.0,0.00022706,2]
[311755976,1705378261149,-500.0,0.00022706,2]
[311755977,1705378261158,-568.98,0.00022706,2]
[311755978,1705378261167,-500.0,0.00022706,2]
[311755979,1705378261177,-500.0,0.00022706,2]
[311755980,1705378261187,-500.0,0.00022706,2]
[311755981,1705378261197,-348.94443941,0.00022706,2]
[311755982,1705378261207,-500.0,0.00022706,2]
[311755983,1705378261217,-500.0,0.00022706,2]
[311755984,1705378261227,-500.0,0.00022706,2]
[311755985,1705378261236,-500.0,0.00022706,2]
[311755986,1705378261246,-500.0,0.00022706,2]
[311755987,1705378261256,-500.0,0.00022706,2]
[311755988,1705378261266,-500.0,0.00022706,2]
[311755989,1705378261275,-500.0,0.00022706,2]
[311755990,1705378261286,-500.0,0.00022706,2]
[311755991,1705378261295,-500.0,0.00022706,2]
[311755992,1705378261305,-500.0,0.00022706,2]
[311755993,1705378261314,-500.0,0.00022706,2]
[311755994,1705378261324,-500.0,0.00022706,2]
[311755995,1705378261334,-500.0,0.00022706,2]
[311755996,1705378261343,-500.0,0.00022706,2]
[311755997,1705378261353,-500.0,0.00022706,2]
[311755998,1705378261363,-500.0,0.00022706,2]
[311755999,1705378261372,-500.0,0.00022706,2]
[311756000,1705378261382,-500.0,0.00022706,2]
[311756001,1705378261392,-500.0,0.00022706,2]
[311756002,1705378261402,-666.69,0.00022706,2]
[311756003,1705378261411,-500.0,0.00022706,2]
[311756004,1705378261421,-500.0,0.00022706,2]
[311756005,1705378261431,-500.0,0.00022706,2]
[311756006,1705378261440,-585.27,0.00022706,2]
[311756007,1705378261450,-500.0,0.00022706,2]
[311756008,1705378261460,-250.0,0.00022706,2]
[311756009,1705378261470,-532.52,0.00022706,2]
[311756010,1705378261480,-500.0,0.00022706,2]
[311756011,1705378261491,-500.0,0.00022706,2]
[311756012,1705378261501,-500.0,0.00022706,2]
[311756013,1705378261514,-536.9159265,0.00022706,2]
[311756014,1705378261523,-500.0,0.00022706,2]
[311756015,1705378261532,-822.16,0.00022706,2]
[311756016,1705378261542,-1171.97,0.00022706,2]
[311756017,1705378261552,-500.0,0.00022706,2]
[311756018,1705378261562,-500.0,0.00022706,2]
[311756019,1705378261572,-503.32,0.00022706,2]
[311756020,1705378261582,-500.0,0.00022706,2]
[311756021,1705378261592,-500.0,0.00022706,2]
[311756022,1705378261602,-500.0,0.00022706,2]
[311756023,1705378261612,-500.0,0.00022706,2]
[311756024,1705378261621,-538.64,0.00022706,2]
[311756025,1705378261631,-500.0,0.00022706,2]
[311756026,1705378261641,-500.0,0.00022706,2]
[311756027,1705378261651,-500.0,0.00022706,2]
[311756028,1705378261661,-627.01,0.00022706,2]
[311756029,1705378261671,-529.55,0.00022706,2]
[311756030,1705378261681,-615.45,0.00022706,2]
[311756031,1705378261691,-500.0,0.00022706,2]
[311756032,1705378261701,-519.25,0.00022706,2]
[311756033,1705378261711,-680.79,0.00022706,2]
[311756034,1705378261722,-624.2,0.00022706,2]
[311756035,1705378261732,-500.0,0.00022706,2]
[311756036,1705378261742,-677.22,0.00022706,2]
[311756037,1705378261752,-586.91,0.00022706,2]
[311756038,1705378261768,-500.0,0.00022706,2]
[311756039,1705378261778,-772.92,0.00022706,2]
[311756040,1705378261789,-500.0,0.00022706,2]
[311756041,1705378261801,-500.0,0.00022706,2]
[311756042,1705378261811,-966.93,0.00022706,2]
[311756043,1705378261823,-500.0,0.00022706,2]
[311756044,1705378261832,-793.42,0.00022706,2]
[311756045,1705378261842,-500.0,0.00022706,2]
[311756046,1705378261852,-500.0,0.00022706,2]
[311756047,1705378261862,-554.76,0.00022706,2]
[311756048,1705378261872,-500.0,0.00022706,2]
[311756049,1705378261881,-500.0,0.00022706,2]
[311756050,1705378261892,-539.12,0.00022706,2]
[311756051,1705378261901,-500.0,0.00022706,2]
[311756052,1705378261911,-500.0,0.00022706,2]
[311756053,1705378261920,-500.0,0.00022706,2]
[311756054,1705378261930,-500.0,0.00022706,2]
[311756055,1705378261939,-607.58,0.00022706,2]
[311756056,1705378261949,-503.16,0.00022706,2]
[311756057,1705378261959,-500.0,0.00022706,2]
[311756058,1705378261968,-500.0,0.00022706,2]
[311756059,1705378261977,-500.0,0.00022706,2]
[311756060,1705378261986,-500.0,0.00022706,2]
[311756061,1705378261996,-500.0,0.00022706,2]
[311756062,1705378262008,-552.42,0.00022706,2]
[311756063,1705378262018,-883.93,0.00022706,2]
[311756064,1705378262028,-500.0,0.00022706,2]
[311756065,1705378262037,-520.86,0.00022706,2]
[311756066,1705378262047,-500.0,0.00022706,2]
[311756067,1705378262057,-626.47,0.00022706,2]
[311756068,1705378262066,-500.0,0.00022706,2]
[311756069,1705378262076,-614.67,0.00022706,2]
[311756070,1705378262085,-500.0,0.00022706,2]
[311756071,1705378262094,-781.65,0.00022706,2]
[311756072,1705378262104,-267.75632486,0.00022706,2]
[311756073,1705378262114,-500.0,0.00022706,2]
[311756074,1705378262123,-490.58914663,0.00022706,2]
[311756075,1705378262132,-872.53,0.00022706,2]
[311756076,1705378262142,-500.0,0.00022706,2]
[311756077,1705378262151,-775.73,0.00022706,2]
[311756078,1705378262160,-500.0,0.00022706,2]
[311756079,1705378262170,-500.0,0.00022706,2]
[311756080,1705378262179,-500.0,0.00022706,2]
[311756081,1705378262189,-720.98,0.00022706,2]
[311756082,1705378262198,-500.0,0.00022706,2]
[311756083,1705378262208,-671.52,0.00022706,2]
[311756084,1705378262218,-500.0,0.00022706,2]
[311756085,1705378262227,-500.0,0.00022706,2]
[311756086,1705378262237,-500.0,0.00022706,2]
[311756087,1705378262247,-500.0,0.00022706,2]
[311756088,1705378262259,-705.72,0.00022706,2]
[311756089,1705378262268,-500.0,0.00022706,2]
[311756090,1705378262277,-1250.93,0.00022706,2]
[311756091,1705378262287,-532.5054153,0.00022706,2]
[311756092,1705378262296,-500.0,0.00022706,2]
[311756093,1705378262305,-500.0,0.00022706,2]
[311756094,1705378262315,-500.0,0.00022706,2]
[311756095,1705378262324,-657.68,0.00022706,2]
[311756096,1705378262333,-502.31553912,0.00022706,2]
[311756097,1705378262343,-622.67,0.00022706,2]
[311756098,1705378262352,-500.0,0.00022706,2]
[311756099,1705378262361,-720.95,0.00022706,2]
[311756100,1705378262371,-556.88,0.00022706,2]
[311756101,1705378262380,-500.0,0.00022706,2]
[311756102,1705378262390,-500.0,0.00022706,2]
[311756103,1705378262400,-500.0,0.00022706,2]
[311756104,1705378262409,-485.0730041,0.00022706,2]
[311756105,1705378262419,-1048.43,0.00022706,2]
[311756106,1705378262429,-500.0,0.00022706,2]
[311756107,1705378262438,-642.22,0.00022706,2]
[311756108,1705378262448,-500.0,0.00022706,2]
[311756109,1705378262458,-500.0,0.00022706,2]
[311756110,1705378262468,-500.0,0.00022706,2]
[311756111,1705378262477,-572.23,0.00022706,2]
[311756112,1705378262487,-1774.11,0.00022706,2]
[311756113,1705378262497,-573.86,0.00022706,2]
[311756114,1705378262507,-500.0,0.00022706,2]
[311756115,1705378262517,-500.0,0.00022706,2]
[311756116,1705378262527,-500.0,0.00022706,2]
[311756117,1705378262537,-500.0,0.00022706,2]
[311756118,1705378262547,-500.0,0.00022706,2]
[311756119,1705378262558,-594.76,0.00022706,2]
[311756120,1705378262765,-1613.39,0.00022706,2]
[311756121,1705378262790,-1605.96,0.00022706,2]
[311756122,1705378262799,-589.65,0.00022706,2]
[311756123,1705378262809,-278.23653318,0.00022706,2]
[311756124,1705378262818,-500.0,0.00022706,2]
[311756125,1705378262827,-500.0,0.00022706,2]
[311756126,1705378262837,-4285.28,0.00022706,2]
[311756127,1705378262847,-2316.19,0.00022706,2]
[311756128,1705378262857,-500.0,0.00022706,2]
[311756129,1705378262867,-530.59,0.00022706,2]
[311756130,1705378262877,-500.0,0.00022706,2]
[311756131,1705378262890,-1216.42,0.00022706,2]
[311756132,1705378262900,-1967.53,0.00022706,2]
[311756133,1705378262909,-516.95,0.00022706,2]
[311756134,1705378262919,-500.0,0.00022706,2]
[311756135,1705378262929,-691.21,0.00022706,2]
[311756136,1705378262939,-784.17,0.00022706,2]
[311756137,1705378262948,-782.17,0.00022706,2]
[311756138,1705378262958,-681.2,0.00022706,2]
[311756139,1705378262969,-833.11,0.00022706,2]
[311756140,1705378262979,-500.0,0.00022706,2]
[311756141,1705378262989,-722.04,0.00022706,2]
[311756142,1705378262999,-893.25,0.00022706,2]
[311756143,1705378263010,-654.5,0.00022706,2]
[311756144,1705378263020,-500.0,0.00022706,2]
[311756145,1705378263029,-597.71,0.00022706,2]
[311756146,1705378263039,-1732.01,0.00022706,2]
[311756148,1705378263049,-1017.58,0.00022706,2]
[311756149,1705378263059,-382.46279551,0.00022706,2]
[311756150,1705378263068,-1309.14,0.00022706,2]
[311756151,1705378263077,-500.0,0.00022706,2]
[311756152,1705378263087,-975.04,0.00022706,2]
[311756153,1705378263096,-500.0,0.00022706,2]
[311756154,1705378263105,-500.0,0.00022706,2]
[311756155,1705378263115,-1058.39,0.00022706,2]
[311756156,1705378263125,-500.0,0.00022706,2]
[311756157,1705378263134,-500.0,0.00022706,5]
[311756158,1705378263144,-686.88,0.00022706,2]
[311756159,1705378263154,-866.71,0.00022706,2]
[311756160,1705378263164,-2717.14,0.00022706,2]
[311756161,1705378263173,-500.0,0.00022706,2]
[311756162,1705378263182,-741.61,0.00022706,2]
[311756163,1705378263192,-500.0,0.00022706,2]
[311756164,1705378263201,-620.87,0.00022706,2]
[311756165,1705378263210,-300.0,0.00022706,2]
[311756166,1705378263220,-1026.1,0.00022706,2]
[311756167,1705378263230,-898.95,0.00022706,2]
[311756168,1705378263240,-3030.71,0.00022706,2]
[311756169,1705378263250,-563.11,0.00022706,2]
[311756170,1705378263261,-500.0,0.00022706,2]